[Event "*** Titled Tuesday Blitz"]
[Site "Chess.com"]
[Date "2019.04.02"]
[Round "6"]
[White "SaraciNderim"]
[Black "fm_magua"]
[Result "1-0"]
[WhiteElo "2725"]
[BlackElo "2510"]
[TimeControl "180+2"]
[EndTime "15:17:53 PDT"]
[Termination "SaraciNderim won by resignation"]

1. d4 {[%clk 0:03:00.7]} 1... Nf6 {[%clk 0:02:59.7]} 2. Nf3 {[%clk 0:03:01.3]}
2... g6 {[%clk 0:03:01.1]} 3. Bg5 {[%clk 0:03:02.1]} 3... Bg7 {[%clk 0:03:02.4]}
4. Nbd2 {[%clk 0:03:03.2]} 4... d5 {[%clk 0:03:03.2]} 5. e3 {[%clk 0:03:04]}
5... O-O {[%clk 0:03:03.9]} 6. Bd3 {[%clk 0:03:04.9]} 6... c6 {[%clk 0:03:03.6]}
7. O-O {[%clk 0:03:05.4]} 7... Bf5 {[%clk 0:03:04.5]} 8. Bxf5 {[%clk 0:03:03.6]}
8... gxf5 {[%clk 0:03:05.4]} 9. Bxf6 {[%clk 0:03:04.5]} 9... Bxf6 {[%clk
0:03:06]} 10. c4 {[%clk 0:03:04.7]} 10... e6 {[%clk 0:03:07]} 11. Qb3 {[%clk
0:03:04.1]} 11... Qb6 {[%clk 0:03:07.5]} 12. Ne1 {[%clk 0:03:01.5]} 12... Qxb3
{[%clk 0:03:07.5]} 13. axb3 {[%clk 0:03:02]} 13... a6 {[%clk 0:03:07.8]} 14. Nd3
{[%clk 0:03:03.2]} 14... Nd7 {[%clk 0:03:08.9]} 15. f4 {[%clk 0:03:01.9]} 15...
Rfb8 {[%clk 0:03:06.4]} 16. Nf3 {[%clk 0:02:59.4]} 16... Kf8 {[%clk 0:03:07.6]}
17. h3 {[%clk 0:02:56.4]} 17... Ke7 {[%clk 0:03:08.7]} 18. Kf2 {[%clk
0:02:56.7]} 18... h5 {[%clk 0:03:09.5]} 19. Rg1 {[%clk 0:02:57.3]} 19... Rg8
{[%clk 0:03:10.1]} 20. c5 {[%clk 0:02:56.7]} 20... Rg6 {[%clk 0:03:06.9]} 21. g3
{[%clk 0:02:55.5]} 21... Rag8 {[%clk 0:03:07.6]} 22. Ra4 {[%clk 0:02:52.7]}
22... Kd8 {[%clk 0:03:08.7]} 23. b4 {[%clk 0:02:48.8]} 23... Kc7 {[%clk
0:03:09]} 24. Raa1 {[%clk 0:02:49.9]} 24... R6g7 {[%clk 0:03:08.9]} 25. Rg2
{[%clk 0:02:48.8]} 25... Rg6 {[%clk 0:03:10.1]} 26. Rag1 {[%clk 0:02:50.1]}
26... Kd8 {[%clk 0:03:08.5]} 27. Nfe5 {[%clk 0:02:43.8]} 27... Bxe5 {[%clk
0:03:08.2]} 28. fxe5 {[%clk 0:02:43.4]} 28... Rg5 {[%clk 0:03:01.3]} 29. Nf4
{[%clk 0:02:43.8]} 29... Rh8 {[%clk 0:03:01.9]} 30. Ra1 {[%clk 0:02:34.1]} 30...
Kc7 {[%clk 0:03:01.8]} 31. Rag1 {[%clk 0:02:25.7]} 31... Nf8 {[%clk 0:03:02.2]}
32. g4 {[%clk 0:02:23]} 32... hxg4 {[%clk 0:03:01.7]} 33. hxg4 {[%clk
0:02:24.9]} 33... fxg4 {[%clk 0:02:59]} 34. Rxg4 {[%clk 0:02:26.2]} 34... Rxg4
{[%clk 0:03:00.2]} 35. Rxg4 {[%clk 0:02:28.1]} 35... Kd7 {[%clk 0:02:57.9]} 36.
Kf3 {[%clk 0:02:22.1]} 36... Rh2 {[%clk 0:02:55.3]} 37. Rg7 {[%clk 0:02:16.6]}
37... Ke7 {[%clk 0:02:50.3]} 38. b3 {[%clk 0:01:39.8]} 38... Rb2 {[%clk
0:02:21.1]} 39. Nh3 {[%clk 0:01:40.2]} 39... Rxb3 {[%clk 0:02:11.6]} 40. Ng5
{[%clk 0:01:40.9]} 40... Rxb4 {[%clk 0:02:10]} 41. Rxf7+ {[%clk 0:01:41.7]}
41... Ke8 {[%clk 0:02:11.3]} 42. Rc7 {[%clk 0:01:36.5]} 42... a5 {[%clk
0:02:07.2]} 43. Nf7 {[%clk 0:01:13.7]} 43... a4 {[%clk 0:02:08]} 44. Nd6+ {[%clk
0:01:12.5]} 44... Kd8 {[%clk 0:02:09]} 45. Rc8+ {[%clk 0:01:13.5]} 45... Ke7
{[%clk 0:02:07.8]} 46. Re8+ {[%clk 0:01:14.4]} 1-0

[Event "*** Titled Tuesday Blitz"]
[Site "Chess.com"]
[Date "2019.04.02"]
[Round "6"]
[White "Floatingdream1"]
[Black "Robin-Side"]
[Result "1-0"]
[WhiteElo "2818"]
[BlackElo "2592"]
[TimeControl "180+2"]
[EndTime "15:18:01 PDT"]
[Termination "Floatingdream1 won on time"]

1. c4 {[%clk 0:03:01.9]} 1... g6 {[%clk 0:03:00.9]} 2. Nc3 {[%clk 0:03:02.6]}
2... Bg7 {[%clk 0:03:02.4]} 3. g3 {[%clk 0:03:04.1]} 3... e5 {[%clk 0:03:03.5]}
4. Bg2 {[%clk 0:03:05.2]} 4... Ne7 {[%clk 0:03:05.1]} 5. Nf3 {[%clk 0:03:04.5]}
5... c6 {[%clk 0:03:06.3]} 6. d4 {[%clk 0:03:03.3]} 6... exd4 {[%clk 0:02:41.2]}
7. Nxd4 {[%clk 0:03:04.3]} 7... d5 {[%clk 0:02:41.8]} 8. cxd5 {[%clk 0:03:04.7]}
8... Nxd5 {[%clk 0:02:43.7]} 9. Nxd5 {[%clk 0:03:05.2]} 9... cxd5 {[%clk
0:02:45.6]} 10. O-O {[%clk 0:03:06.2]} 10... O-O {[%clk 0:02:46.7]} 11. Be3
{[%clk 0:03:01.9]} 11... Nc6 {[%clk 0:02:46.3]} 12. Qd2 {[%clk 0:03:02.6]} 12...
Ne5 {[%clk 0:02:36.5]} 13. b3 {[%clk 0:03:03.3]} 13... Be6 {[%clk 0:02:25.2]}
14. h3 {[%clk 0:03:01.3]} 14... a6 {[%clk 0:02:21.7]} 15. Rfd1 {[%clk
0:03:01.4]} 15... Qd7 {[%clk 0:02:20.1]} 16. Kh2 {[%clk 0:03:00.9]} 16... Rac8
{[%clk 0:02:08.6]} 17. Rac1 {[%clk 0:03:01.4]} 17... Rxc1 {[%clk 0:02:05.7]} 18.
Rxc1 {[%clk 0:03:02.4]} 18... Rc8 {[%clk 0:02:06.6]} 19. Rd1 {[%clk 0:02:53.9]}
19... Qc7 {[%clk 0:01:48]} 20. Bh6 {[%clk 0:02:39.4]} 20... Qc3 {[%clk
0:01:38.9]} 21. Qf4 {[%clk 0:02:40]} 21... Bxh6 {[%clk 0:01:06.8]} 22. Qxh6
{[%clk 0:02:39.9]} 22... Qb2 {[%clk 0:00:53.5]} 23. Qe3 {[%clk 0:02:35.9]} 23...
Nc6 {[%clk 0:00:10.3]} 24. Nxe6 {[%clk 0:02:34.7]} 24... Re8 {[%clk 0:00:11.8]}
25. Bxd5 {[%clk 0:02:35.9]} 25... fxe6 {[%clk 0:00:13.1]} 26. Rd2 {[%clk
0:02:29.2]} 26... Qf6 {[%clk 0:00:12.3]} 27. Bxc6 {[%clk 0:02:22.9]} 27... bxc6
{[%clk 0:00:14.2]} 28. Kg2 {[%clk 0:02:24]} 28... e5 {[%clk 0:00:13.4]} 29. Qe4
{[%clk 0:02:19.8]} 29... Re6 {[%clk 0:00:12.8]} 30. Qc4 {[%clk 0:02:16.1]} 30...
Kg7 {[%clk 0:00:12]} 31. Rd7+ {[%clk 0:02:09.8]} 31... Kh6 {[%clk 0:00:09.2]}
32. Qxa6 {[%clk 0:02:04.5]} 32... e4 {[%clk 0:00:09]} 33. Qa7 {[%clk 0:02:05.3]}
33... Qh8 {[%clk 0:00:03.5]} 34. Qe3+ {[%clk 0:02:04.9]} 34... g5 {[%clk
0:00:04.9]} 35. h4 {[%clk 0:02:05.6]} 1-0

[Event "*** Titled Tuesday Blitz"]
[Site "Chess.com"]
[Date "2019.04.02"]
[Round "6"]
[White "ruvat"]
[Black "Schachmalanders"]
[Result "1/2-1/2"]
[WhiteElo "2279"]
[BlackElo "2274"]
[TimeControl "180+2"]
[EndTime "15:18:01 PDT"]
[Termination "Game drawn by repetition"]

1. d4 {[%clk 0:03:01.9]} 1... d5 {[%clk 0:03:00]} 2. c4 {[%clk 0:03:02.3]} 2...
c6 {[%clk 0:03:00.6]} 3. Nf3 {[%clk 0:03:02.3]} 3... e6 {[%clk 0:03:01.6]} 4.
Qc2 {[%clk 0:03:02.7]} 4... f5 {[%clk 0:03:02]} 5. g3 {[%clk 0:03:03.4]} 5...
Nf6 {[%clk 0:03:03.4]} 6. Bg2 {[%clk 0:03:04.8]} 6... Bd6 {[%clk 0:03:03.2]} 7.
O-O {[%clk 0:03:06.2]} 7... O-O {[%clk 0:03:04.5]} 8. b3 {[%clk 0:03:07.3]} 8...
Qe7 {[%clk 0:03:04.5]} 9. a4 {[%clk 0:03:07.7]} 9... Bd7 {[%clk 0:03:02.9]} 10.
a5 {[%clk 0:03:05.6]} 10... Be8 {[%clk 0:03:02.5]} 11. Ba3 {[%clk 0:03:05.5]}
11... Bxa3 {[%clk 0:03:01.7]} 12. Nxa3 {[%clk 0:03:06.1]} 12... Ne4 {[%clk
0:03:01.8]} 13. Ne5 {[%clk 0:03:04.1]} 13... Nd7 {[%clk 0:03:01.9]} 14. Nd3
{[%clk 0:03:03.6]} 14... a6 {[%clk 0:02:53.2]} 15. Qb2 {[%clk 0:03:03.7]} 15...
Bh5 {[%clk 0:02:52.1]} 16. Nf4 {[%clk 0:02:57.7]} 16... Bf7 {[%clk 0:02:48.9]}
17. Nc2 {[%clk 0:02:56.3]} 17... Kh8 {[%clk 0:02:48.4]} 18. Ne1 {[%clk
0:02:48.1]} 18... g5 {[%clk 0:02:47.9]} 19. Nfd3 {[%clk 0:02:47.6]} 19... Bh5
{[%clk 0:02:43.6]} 20. Nf3 {[%clk 0:02:47]} 20... Bxf3 {[%clk 0:02:43.6]} 21.
exf3 {[%clk 0:02:47.7]} 21... Nef6 {[%clk 0:02:42.3]} 22. Rfe1 {[%clk
0:02:45.6]} 22... Rae8 {[%clk 0:02:41.5]} 23. Re2 {[%clk 0:02:35.4]} 23... Qf7
{[%clk 0:02:40.1]} 24. Rae1 {[%clk 0:02:33.6]} 24... Re7 {[%clk 0:02:36.1]} 25.
Qa3 {[%clk 0:02:31.8]} 25... Rfe8 {[%clk 0:02:36.5]} 26. Qb4 {[%clk 0:02:27.8]}
26... Nf8 {[%clk 0:02:37.1]} 27. Ne5 {[%clk 0:02:26.7]} 27... Qg7 {[%clk
0:02:28.3]} 28. Re3 {[%clk 0:02:25.8]} 28... N6d7 {[%clk 0:02:23.7]} 29. Nd3
{[%clk 0:02:21.8]} 29... Nf6 {[%clk 0:02:23.8]} 30. Nc5 {[%clk 0:02:19.2]} 30...
g4 {[%clk 0:02:18.8]} 31. Qc3 {[%clk 0:01:58.9]} 31... gxf3 {[%clk 0:02:17.8]}
32. Bxf3 {[%clk 0:01:59.2]} 32... Ne4 {[%clk 0:02:18.3]} 33. Bxe4 {[%clk
0:01:56.3]} 33... fxe4 {[%clk 0:02:17.4]} 34. f3 {[%clk 0:01:56.2]} 34... exf3
{[%clk 0:01:44.6]} 35. Rxf3 {[%clk 0:01:58.1]} 35... e5 {[%clk 0:01:45.9]} 36.
dxe5 {[%clk 0:01:54.3]} 36... Rxe5 {[%clk 0:01:45.5]} 37. Rxe5 {[%clk
0:01:53.5]} 37... Rxe5 {[%clk 0:01:44.8]} 38. Rxf8+ {[%clk 0:01:54.1]} 38...
Qxf8 {[%clk 0:01:46.2]} 39. Qxe5+ {[%clk 0:01:54.9]} 39... Kg8 {[%clk
0:01:47.9]} 40. cxd5 {[%clk 0:01:53.9]} 40... Qxc5+ {[%clk 0:01:47.3]} 41. Kg2
{[%clk 0:01:49.5]} 41... cxd5 {[%clk 0:01:26.5]} 42. Qe6+ {[%clk 0:01:36.4]}
42... Kg7 {[%clk 0:01:25.6]} 43. Qe5+ {[%clk 0:01:35.1]} 43... Kg6 {[%clk
0:01:22.2]} 44. Qe6+ {[%clk 0:01:33.2]} 44... Kg7 {[%clk 0:01:23.3]} 45. Qe5+
{[%clk 0:01:33.2]} 45... Kg6 {[%clk 0:01:23.5]} 46. Qe6+ {[%clk 0:01:33.9]}
46... Kg7 {[%clk 0:01:24.8]} 47. Qe5+ {[%clk 0:01:33.8]} 1/2-1/2

[Event "*** Titled Tuesday Blitz"]
[Site "Chess.com"]
[Date "2019.04.02"]
[Round "6"]
[White "FearNoEvil12"]
[Black "SergioGarciaFuentes"]
[Result "0-1"]
[WhiteElo "1998"]
[BlackElo "2045"]
[TimeControl "180+2"]
[EndTime "15:18:02 PDT"]
[Termination "SergioGarciaFuentes won by checkmate"]

1. e4 {[%clk 0:03:01.9]} 1... c5 {[%clk 0:02:59.3]} 2. Nc3 {[%clk 0:03:02.7]}
2... a6 {[%clk 0:02:59.7]} 3. a4 {[%clk 0:03:01.8]} 3... Nc6 {[%clk 0:03:00.1]}
4. f4 {[%clk 0:03:03.2]} 4... e6 {[%clk 0:03:01.2]} 5. Nf3 {[%clk 0:03:04.6]}
5... d5 {[%clk 0:03:01.9]} 6. d3 {[%clk 0:03:03.4]} 6... Nf6 {[%clk 0:03:01.2]}
7. Qe2 {[%clk 0:03:03.6]} 7... Nd4 {[%clk 0:02:58.4]} 8. Nxd4 {[%clk 0:03:03.5]}
8... cxd4 {[%clk 0:02:58.4]} 9. Nd1 {[%clk 0:03:05]} 9... Qa5+ {[%clk
0:02:30.6]} 10. Bd2 {[%clk 0:03:04.3]} 10... Bb4 {[%clk 0:02:31.1]} 11. e5
{[%clk 0:03:04.3]} 11... Nd7 {[%clk 0:02:27]} 12. g3 {[%clk 0:03:01.3]} 12... f6
{[%clk 0:01:36.7]} 13. c3 {[%clk 0:03:00.1]} 13... dxc3 {[%clk 0:01:35.4]} 14.
bxc3 {[%clk 0:03:00.6]} 14... Be7 {[%clk 0:01:36.9]} 15. Bh3 {[%clk 0:02:47.1]}
15... fxe5 {[%clk 0:01:27.9]} 16. Bxe6 {[%clk 0:02:41.6]} 16... exf4 {[%clk
0:01:28.5]} 17. O-O {[%clk 0:02:39.2]} 17... Nf6 {[%clk 0:01:21]} 18. Bxf4
{[%clk 0:02:29.2]} 18... Qb6+ {[%clk 0:01:16.9]} 19. d4 {[%clk 0:02:20.9]} 19...
Qxe6 {[%clk 0:01:14.9]} 20. Qf2 {[%clk 0:02:21.2]} 20... Ne4 {[%clk 0:01:13.1]}
21. Qg2 {[%clk 0:02:17.7]} 21... O-O {[%clk 0:01:12.4]} 22. Ne3 {[%clk
0:02:13.7]} 22... Bd7 {[%clk 0:01:08.5]} 23. Rae1 {[%clk 0:02:12.9]} 23... Bc6
{[%clk 0:01:06.3]} 24. g4 {[%clk 0:02:02]} 24... Rae8 {[%clk 0:01:03.8]} 25. Nf5
{[%clk 0:02:01.7]} 25... Rxf5 {[%clk 0:00:46.6]} 26. gxf5 {[%clk 0:02:01.7]}
26... Qxf5 {[%clk 0:00:48.2]} 27. Be5 {[%clk 0:02:00.4]} 27... Qg5 {[%clk
0:00:44.3]} 28. Rf3 {[%clk 0:01:51.8]} 28... Qxg2+ {[%clk 0:00:44]} 29. Kxg2
{[%clk 0:01:52.2]} 29... Bxa4 {[%clk 0:00:37.8]} 30. c4 {[%clk 0:01:47.7]} 30...
Bc6 {[%clk 0:00:38]} 31. c5 {[%clk 0:01:46.7]} 31... Bxc5 {[%clk 0:00:35.2]} 32.
dxc5 {[%clk 0:01:40]} 32... Rxe5 {[%clk 0:00:35.4]} 33. Ref1 {[%clk 0:01:39.3]}
33... Rg5+ {[%clk 0:00:35.3]} 34. Kh3 {[%clk 0:01:38.1]} 34... Bd7+ {[%clk
0:00:33.5]} 35. Kh4 {[%clk 0:01:38.4]} 35... Rg4+ {[%clk 0:00:33.9]} 36. Kh5
{[%clk 0:01:38.9]} 36... g6+ {[%clk 0:00:28.7]} 37. Kh6 {[%clk 0:01:37.5]} 37...
Rh4# {[%clk 0:00:29.9]} 0-1

[Event "*** Titled Tuesday Blitz"]
[Site "Chess.com"]
[Date "2019.04.02"]
[Round "6"]
[White "Dare-Dare"]
[Black "1995Tiger"]
[Result "0-1"]
[WhiteElo "2119"]
[BlackElo "2061"]
[TimeControl "180+2"]
[EndTime "15:18:07 PDT"]
[Termination "1995Tiger won by checkmate"]

1. Nf3 {[%clk 0:03:01.9]} 1... Nf6 {[%clk 0:03:00.3]} 2. c4 {[%clk 0:03:03.4]}
2... g6 {[%clk 0:03:00.9]} 3. Nc3 {[%clk 0:03:04.8]} 3... Bg7 {[%clk 0:03:02.8]}
4. e4 {[%clk 0:03:06]} 4... d6 {[%clk 0:03:03.5]} 5. d4 {[%clk 0:03:07.1]} 5...
O-O {[%clk 0:03:00.6]} 6. h3 {[%clk 0:03:08.3]} 6... c5 {[%clk 0:02:58.1]} 7. d5
{[%clk 0:03:09.2]} 7... e6 {[%clk 0:02:59.1]} 8. Bd3 {[%clk 0:03:10.4]} 8...
exd5 {[%clk 0:03:00.1]} 9. exd5 {[%clk 0:03:12.3]} 9... Re8+ {[%clk 0:02:57.2]}
10. Be3 {[%clk 0:03:13.1]} 10... Na6 {[%clk 0:02:52.4]} 11. O-O {[%clk
0:03:12.7]} 11... Nd7 {[%clk 0:02:47.3]} 12. Bf4 {[%clk 0:03:09.6]} 12... Ne5
{[%clk 0:02:46.7]} 13. Nxe5 {[%clk 0:03:10.4]} 13... Bxe5 {[%clk 0:02:48.6]} 14.
Bxe5 {[%clk 0:03:10.7]} 14... Rxe5 {[%clk 0:02:49.4]} 15. Qd2 {[%clk 0:03:09.5]}
15... Qh4 {[%clk 0:01:50.8]} 16. f4 {[%clk 0:03:00.2]} 16... Re8 {[%clk
0:01:43.8]} 17. f5 {[%clk 0:03:01]} 17... Qd4+ {[%clk 0:01:41.9]} 18. Kh1 {[%clk
0:02:59.6]} 18... Bxf5 {[%clk 0:01:42.6]} 19. Rad1 {[%clk 0:02:51.5]} 19... Bxd3
{[%clk 0:01:42]} 20. Qxd3 {[%clk 0:02:53.4]} 20... Qxd3 {[%clk 0:01:43.3]} 21.
Rxd3 {[%clk 0:02:55.3]} 21... f5 {[%clk 0:01:40.3]} 22. Rdf3 {[%clk 0:02:55.2]}
22... Nc7 {[%clk 0:01:23.1]} 23. Rg3 {[%clk 0:02:55.3]} 23... Re5 {[%clk
0:01:18.3]} 24. h4 {[%clk 0:02:55.6]} 24... Rae8 {[%clk 0:01:18.2]} 25. h5
{[%clk 0:02:56]} 25... Re3 {[%clk 0:01:17.1]} 26. Rg5 {[%clk 0:02:54.1]} 26...
Kf7 {[%clk 0:01:15.4]} 27. hxg6+ {[%clk 0:02:20.4]} 27... hxg6 {[%clk
0:01:17.3]} 28. Rf3 {[%clk 0:02:09.2]} 28... Re1+ {[%clk 0:00:57.8]} 29. Kh2
{[%clk 0:02:09.8]} 29... Kf6 {[%clk 0:00:51.2]} 30. Rgg3 {[%clk 0:02:09.6]}
30... g5 {[%clk 0:00:47.4]} 31. Rf2 {[%clk 0:02:02.5]} 31... f4 {[%clk
0:00:36.7]} 32. Rh3 {[%clk 0:01:58.4]} 32... g4 {[%clk 0:00:28.6]} 33. Rg3
{[%clk 0:01:25.9]} 33... Rh8+ {[%clk 0:00:25.7]} 34. Rh3 {[%clk 0:01:26.8]}
34... g3# {[%clk 0:00:25.7]} 0-1

[Event "*** Titled Tuesday Blitz"]
[Site "Chess.com"]
[Date "2019.04.02"]
[Round "6"]
[White "ristingho"]
[Black "SabinaFoisor"]
[Result "0-1"]
[WhiteElo "2481"]
[BlackElo "2216"]
[TimeControl "180+2"]
[EndTime "15:18:08 PDT"]
[Termination "SabinaFoisor won by resignation"]

1. d4 {[%clk 0:01:02.2]} 1... d5 {[%clk 0:02:58.6]} 2. Bf4 {[%clk 0:01:02.5]}
2... e6 {[%clk 0:02:55.6]} 3. e3 {[%clk 0:01:01.7]} 3... Bd6 {[%clk 0:02:56.6]}
4. Bg3 {[%clk 0:01:00.5]} 4... Nf6 {[%clk 0:02:57.2]} 5. Bd3 {[%clk 0:00:55.4]}
5... c5 {[%clk 0:02:57.5]} 6. c3 {[%clk 0:00:55.9]} 6... b6 {[%clk 0:02:58.7]}
7. Nd2 {[%clk 0:00:55.4]} 7... Bb7 {[%clk 0:02:59.9]} 8. Ngf3 {[%clk 0:00:56.4]}
8... Bxg3 {[%clk 0:02:48.6]} 9. hxg3 {[%clk 0:00:52.6]} 9... Nbd7 {[%clk
0:02:48]} 10. Qe2 {[%clk 0:00:48.9]} 10... Ne4 {[%clk 0:02:46.8]} 11. g4 {[%clk
0:00:44.9]} 11... Nxd2 {[%clk 0:02:40.6]} 12. Qxd2 {[%clk 0:00:36.1]} 12... c4
{[%clk 0:02:40.9]} 13. Bc2 {[%clk 0:00:36.5]} 13... Nf6 {[%clk 0:02:41.5]} 14.
Ne5 {[%clk 0:00:34.3]} 14... Ne4 {[%clk 0:02:37.9]} 15. Bxe4 {[%clk 0:00:33.3]}
15... dxe4 {[%clk 0:02:38.4]} 16. Nxc4 {[%clk 0:00:35.2]} 16... Qd5 {[%clk
0:02:30.9]} 17. Na3 {[%clk 0:00:34.5]} 17... Qg5 {[%clk 0:02:27.4]} 18. Qe2
{[%clk 0:00:32.8]} 18... O-O {[%clk 0:02:26.8]} 19. O-O-O {[%clk 0:00:30.8]}
19... a5 {[%clk 0:02:25.2]} 20. Rh5 {[%clk 0:00:31.7]} 20... Qg6 {[%clk
0:02:25.1]} 21. Rdh1 {[%clk 0:00:33.2]} 21... Ba6 {[%clk 0:02:19.9]} 22. Qc2
{[%clk 0:00:29.1]} 22... f5 {[%clk 0:02:20.5]} 23. gxf5 {[%clk 0:00:24.6]} 23...
Rxf5 {[%clk 0:02:20.7]} 24. f3 {[%clk 0:00:21.4]} 24... Rxh5 {[%clk 0:02:20.6]}
25. Rxh5 {[%clk 0:00:19.6]} 25... Qxh5 {[%clk 0:02:21.4]} 26. Qxe4 {[%clk
0:00:21.5]} 26... Qd5 {[%clk 0:02:20.2]} 27. Qg4 {[%clk 0:00:21.4]} 27... Qf5
{[%clk 0:02:16.2]} 28. Qg3 {[%clk 0:00:20.9]} 28... Rf8 {[%clk 0:02:17.6]} 29.
Nc2 {[%clk 0:00:20.8]} 29... Bd3 {[%clk 0:02:16.2]} 30. Ne1 {[%clk 0:00:20.9]}
30... Bc4 {[%clk 0:02:15.5]} 31. Qc7 {[%clk 0:00:21.8]} 31... Bxa2 {[%clk
0:02:13.3]} 32. Qxb6 {[%clk 0:00:22.5]} 32... a4 {[%clk 0:02:10.7]} 33. Qb4
{[%clk 0:00:21.8]} 33... Bb3 {[%clk 0:02:06]} 34. Qd6 {[%clk 0:00:22.5]} 34...
Qg5 {[%clk 0:02:03.2]} 35. Kd2 {[%clk 0:00:22.7]} 35... Qf6 {[%clk 0:02:02.5]}
36. Nd3 {[%clk 0:00:21.7]} 36... Qg5 {[%clk 0:01:57.3]} 37. Ne1 {[%clk 0:00:22]}
37... Qh4 {[%clk 0:01:58]} 38. Ke2 {[%clk 0:00:21]} 38... Bc4+ {[%clk
0:01:57.1]} 39. Kd1 {[%clk 0:00:21.5]} 39... Qf2 {[%clk 0:01:58.1]} 40. Qc5
{[%clk 0:00:22.2]} 40... Bb3+ {[%clk 0:01:57]} 0-1

[Event "*** Titled Tuesday Blitz"]
[Site "Chess.com"]
[Date "2019.04.02"]
[Round "6"]
[White "FERNANDEZL1983"]
[Black "effefe"]
[Result "1-0"]
[WhiteElo "2444"]
[BlackElo "2262"]
[TimeControl "180+2"]
[EndTime "15:18:12 PDT"]
[Termination "FERNANDEZL1983 won by resignation"]

1. d4 {[%clk 0:03:01.9]} 1... Nf6 {[%clk 0:02:59.9]} 2. Nf3 {[%clk 0:03:01.6]}
2... g6 {[%clk 0:03:00.9]} 3. g3 {[%clk 0:03:02.4]} 3... Bg7 {[%clk 0:03:01.9]}
4. Bg2 {[%clk 0:03:04]} 4... O-O {[%clk 0:03:02.9]} 5. O-O {[%clk 0:03:05.9]}
5... d6 {[%clk 0:03:03.1]} 6. c4 {[%clk 0:03:06.2]} 6... Nc6 {[%clk 0:03:04]} 7.
Nc3 {[%clk 0:03:06.2]} 7... Bf5 {[%clk 0:03:04.9]} 8. d5 {[%clk 0:03:05.3]} 8...
Na5 {[%clk 0:03:05.1]} 9. Nd2 {[%clk 0:03:06.3]} 9... c5 {[%clk 0:03:02.8]} 10.
e4 {[%clk 0:03:07.2]} 10... Bd7 {[%clk 0:02:58.3]} 11. a4 {[%clk 0:03:06.4]}
11... Qc8 {[%clk 0:02:35.3]} 12. Qc2 {[%clk 0:03:04.9]} 12... Bh3 {[%clk
0:02:33.8]} 13. b3 {[%clk 0:03:03]} 13... Bxg2 {[%clk 0:02:23.7]} 14. Kxg2
{[%clk 0:03:04.1]} 14... e6 {[%clk 0:02:21.4]} 15. Bb2 {[%clk 0:03:02.8]} 15...
exd5 {[%clk 0:02:20.8]} 16. cxd5 {[%clk 0:03:03.9]} 16... Qg4 {[%clk 0:02:13.3]}
17. f3 {[%clk 0:03:03.4]} 17... Qd7 {[%clk 0:02:08.5]} 18. Nc4 {[%clk
0:02:51.1]} 18... Qd8 {[%clk 0:01:58.6]} 19. Rae1 {[%clk 0:02:48.3]} 19... a6
{[%clk 0:01:54.8]} 20. f4 {[%clk 0:02:45.5]} 20... Rb8 {[%clk 0:01:42.9]} 21.
Nxa5 {[%clk 0:02:22.8]} 21... Qxa5 {[%clk 0:01:42.6]} 22. e5 {[%clk 0:02:23.6]}
22... dxe5 {[%clk 0:01:32.3]} 23. fxe5 {[%clk 0:02:24]} 23... Ng4 {[%clk
0:01:24.7]} 24. Ne4 {[%clk 0:02:23.3]} 24... Nxe5 {[%clk 0:01:05.2]} 25. Bxe5
{[%clk 0:02:12.1]} 25... Bxe5 {[%clk 0:01:07.1]} 26. Qxc5 {[%clk 0:02:12.6]}
26... Qd8 {[%clk 0:00:35.7]} 27. d6 {[%clk 0:02:13]} 27... Bg7 {[%clk
0:00:32.4]} 28. Qd5 {[%clk 0:02:12.1]} 28... Qb6 {[%clk 0:00:25.7]} 29. Ng5
{[%clk 0:02:09.4]} 29... Qd4 {[%clk 0:00:14]} 30. Rd1 {[%clk 0:01:58.2]} 30...
Qxd5+ {[%clk 0:00:14.7]} 31. Rxd5 {[%clk 0:01:58.9]} 31... Rbd8 {[%clk
0:00:15.5]} 32. d7 {[%clk 0:01:57.6]} 32... h6 {[%clk 0:00:13.9]} 33. Ne4 {[%clk
0:01:58.5]} 33... f5 {[%clk 0:00:13.7]} 34. Nc5 {[%clk 0:01:58.7]} 34... Rf7
{[%clk 0:00:11.6]} 35. Rfd1 {[%clk 0:01:59.2]} 35... b5 {[%clk 0:00:07.6]} 36.
Ne6 {[%clk 0:01:57.5]} 1-0

[Event "*** Titled Tuesday Blitz"]
[Site "Chess.com"]
[Date "2019.04.02"]
[Round "6"]
[White "Gentlejimmy7"]
[Black "KarstenHansch"]
[Result "0-1"]
[WhiteElo "2408"]
[BlackElo "2309"]
[TimeControl "180+2"]
[EndTime "15:18:20 PDT"]
[Termination "KarstenHansch won by resignation"]

1. d4 {[%clk 0:03:01.9]} 1... Nf6 {[%clk 0:03:00.4]} 2. Nf3 {[%clk 0:02:57.8]}
2... g6 {[%clk 0:03:01.6]} 3. Bg5 {[%clk 0:02:58.1]} 3... Bg7 {[%clk 0:03:02.7]}
4. Nbd2 {[%clk 0:02:58.5]} 4... O-O {[%clk 0:03:03.1]} 5. e3 {[%clk 0:02:58.2]}
5... d6 {[%clk 0:03:02.6]} 6. Bd3 {[%clk 0:02:58.1]} 6... c5 {[%clk 0:03:03.1]}
7. c3 {[%clk 0:02:57.5]} 7... b6 {[%clk 0:03:01.6]} 8. O-O {[%clk 0:02:56.4]}
8... Bb7 {[%clk 0:02:59.1]} 9. a4 {[%clk 0:02:55]} 9... Nbd7 {[%clk 0:02:59.5]}
10. a5 {[%clk 0:02:56]} 10... a6 {[%clk 0:02:37.5]} 11. axb6 {[%clk 0:02:55.8]}
11... Qxb6 {[%clk 0:02:37.8]} 12. Nc4 {[%clk 0:02:57.1]} 12... Qc7 {[%clk
0:02:38]} 13. Na5 {[%clk 0:02:56.5]} 13... h6 {[%clk 0:02:32.6]} 14. Bh4 {[%clk
0:02:52.5]} 14... Rfb8 {[%clk 0:02:18.2]} 15. Nxb7 {[%clk 0:02:29.3]} 15... Qxb7
{[%clk 0:02:20.1]} 16. Ra2 {[%clk 0:02:30.3]} 16... e5 {[%clk 0:02:06.8]} 17.
Be2 {[%clk 0:02:23]} 17... cxd4 {[%clk 0:01:56.9]} 18. cxd4 {[%clk 0:02:20.2]}
18... Qd5 {[%clk 0:01:29.9]} 19. Rxa6 {[%clk 0:02:03.9]} 19... Rxa6 {[%clk
0:01:29.8]} 20. Bxa6 {[%clk 0:02:05.8]} 20... e4 {[%clk 0:01:28.2]} 21. Nd2
{[%clk 0:01:48.2]} 21... Rxb2 {[%clk 0:01:28.7]} 22. Bc4 {[%clk 0:01:36.1]}
22... Qa5 {[%clk 0:01:28.9]} 23. Nb1 {[%clk 0:01:35.9]} 23... d5 {[%clk
0:01:22.8]} 24. Qc1 {[%clk 0:01:25.2]} 24... Rxb1 {[%clk 0:01:16.4]} 25. Qxb1
{[%clk 0:01:27.1]} 25... dxc4 {[%clk 0:01:17.2]} 26. Rc1 {[%clk 0:01:27.8]}
26... Nb6 {[%clk 0:01:08]} 27. Bxf6 {[%clk 0:01:28.8]} 27... Bxf6 {[%clk
0:01:08.4]} 28. Qxe4 {[%clk 0:01:30.5]} 28... c3 {[%clk 0:01:05]} 29. Qc6 {[%clk
0:01:30.6]} 29... Nd5 {[%clk 0:00:57]} 30. g3 {[%clk 0:01:25.2]} 30... Qa3
{[%clk 0:00:51.1]} 31. Rb1 {[%clk 0:01:20.6]} 31... Qa2 {[%clk 0:00:38]} 32.
Rb8+ {[%clk 0:01:21]} 32... Kh7 {[%clk 0:00:34.2]} 33. Qe8 {[%clk 0:01:21.4]}
33... Ne7 {[%clk 0:00:34.8]} 34. Qxf7+ {[%clk 0:01:21.6]} 34... Qxf7 {[%clk
0:00:34.8]} 0-1